Cogmind - Beta 14 @@@ ROGUE MODE // 2025.03.19 @ 09:10:20 Player: Anting Result: Destroyed 0b10! Performance ------------- Evolutions (9) 4500 Regions Visited (26) 5200 Robots Destroyed (135) 675 Value Destroyed (3585) 3585 Prototype IDs (53) 1060 Alien Tech Used (11) 2200 Bonus (30539) 30539 TOTAL SCORE: 47759 Bonus ------- Triggered Max Security 2000 High Alert Combat Kills 114 Follower Combat Kills 2144 Met Data Miner 300 Met Zhirov 300 Built Enhanced Grunts 300 A7 Reached Mainframe 300 Met R17 at Cetus 500 Read Decrypted Archives 300 Used Core Reset Matrix 3000 Scanned by Researcher 500 Pursued by Intercept 1000 Met Sigix 2000 Activated Exoskeleton 3000 Recovered Sigix Corpse 2000 Escaped with Exo-Sigix 10000 Win 3000 Friendly Fire -219 Cogmind --------- Core Integrity 277/1600 Matter 276/300 Energy 349/350 System Corruption 0% Temperature Cool (0) Movement Core (50) Location Tau Ceti IV Orbit Parts ------- > --- POWER (3) -------- (None) > --- PROPULSION (8) --- (None) > --- UTILITY (12) ----- Experimental Signal Interpreter Improved Hacking Suite Advanced Hacking Suite Advanced Hacking Suite Spacefold Activator > --- WEAPON (3) ------- (None) > --- INVENTORY (5) ---- Transdimensional Reconstructor Subatomic Replicator Terrabomb Enhanced Nova Cannon Sigix Corpse Peak State ------------ > --- POWER ------------ Light Antimatter Reactor Micro Antimatter Reactor > --- PROPULSION ------- Improved Flight Unit Field Propulsion Drive Cooled Nuclear Pulse Thruster Cooled Nuclear Pulse Thruster Cooled Nuclear Pulse Thruster Nuclear Pulse Array Impulse Thruster > --- UTILITY ---------- Medium Storage Unit Structural Scanner Long-range Sensor Array Experimental Signal Interpreter Experimental Signal Interpreter Makeshift Hacking Suite Makeshift Hacking Suite Improved Hacking Suite Advanced Hacking Suite Advanced Hacking Suite Advanced Hacking Suite Spacefold Activator > --- WEAPON ----------- Enhanced Force Lance Enhanced Force Lance > --- INVENTORY -------- Transdimensional Reconstructor Subatomic Replicator Terrabomb Terrabomb Microwarp Drive Enhanced Nova Cannon Sigix Containment Pod Sigix Corpse [Rating: 162] Favorites ----------- Power Light Antimatter Reactor Engine Light Ion Engine Power Core Light Nuclear Core Reactor Light Antimatter Reactor Propulsion Improved Flight Unit Treads Light Treads Leg Aluminum Leg Flight Unit Improved Flight Unit Utility Makeshift Hacking Suite Device Structural Scanner Storage Medium Storage Unit Processor Improved Signal Interpreter Hackware Makeshift Hacking Suite Protection Light Armor Plating Artifact Spacefold Activator Weapon Precision Assault Rifle Energy Gun Advanced Variable Charge Gun Energy Cannon Enhanced Nova Cannon Ballistic Gun Precision Assault Rifle Ballistic Cannon Light Cannon Launcher Improved Grenade Launcher Special Weapon Molecular Deconstructor Impact Weapon Heavy Mace Slashing Weapon Power Sword Piercing Weapon Enhanced Force Lance Build | -11 -10 -10 -9 -8 -7 -7 -7 -7 -6 -6 -5 -5 -5 -5 -4 -4 -4 -4 -4 -4 -3 -3 -2 -2 -2 -1 ------- Run | Yrd Mat Min Mat Mat Fac Low Low Dat Pro Fac Fac Upp Upp Zhi Pro Fac Ext Cet Arc Hub Res Tes Res Qua Sec Acc Slots Evolved 18 | . . . 2 2 2 . . . . 2 2 . . . . 2 . . . . 2 . 2 . . 2 Power 2 | . . . . . . . . . . . . . . . . . . . . . 1 . . . . 1 Propulsion 5 | . . . 1 1 . . . . . 1 . . . . . 1 . . . . 1 . . . . . Utility 10 | . . . 1 1 2 . . . . 1 2 . . . . 1 . . . . . . 2 . . . Weapon 1 | . . . . . . . . . . . . . . . . . . . . . . . . . . 1 Parts Attached 174 | 7 8 8 20 14 13 3 3 . . 6 5 3 3 9 4 9 7 4 8 . 11 8 8 4 6 3 Power 18 | 1 . 1 2 . . 1 . . . 1 1 . 1 2 1 2 1 . 1 . 1 . 2 . . . Engine 7 | 1 . 1 2 . . . . . . . . . . . 1 2 . . . . . . . . . . Core 2 | . . . . . . 1 . . . . . . 1 . . . . . . . . . . . . . Reactor 9 | . . . . . . . . . . 1 1 . . 2 . . 1 . 1 . 1 . 2 . . . Propulsion 44 | 2 . 2 11 3 4 . . . . 1 . . . 2 . 1 1 1 4 . 2 3 3 2 2 . Treads 13 | . . 2 8 3 . . . . . . . . . . . . . . . . . . . . . . Leg 3 | 2 . . . . . . . . . . . . . 1 . . . . . . . . . . . . Wheel . | . . . . . . . . . . . . . . . . . . . . . . . . . . . Hover . | . . . . . . . . . . . . . . . . . . . . . . . . . . . Flight 28 | . . . 3 . 4 . . . . 1 . . . 1 . 1 1 1 4 . 2 3 3 2 2 . Utility 55 | 2 3 1 3 4 7 2 2 . . 2 4 . . 5 1 5 1 . 1 . 4 . 3 1 3 1 Device 21 | 1 . . . 2 4 1 2 . . 1 . . . 3 1 1 1 . . . 4 . . . . . Storage 9 | 1 3 1 . . . . . . . . 1 . . . . 1 . . 1 . . . 1 . . . Processor 4 | . . . . . 1 . . . . . . . . . . 2 . . . . . . . . 1 . Hackware 12 | . . . . . 2 1 . . . 1 3 . . 1 . 1 . . . . . . 2 1 . . Protection 6 | . . . 3 2 . . . . . . . . . 1 . . . . . . . . . . . . Artifact 3 | . . . . . . . . . . . . . . . . . . . . . . . . . 2 1 Weapon 57 | 2 5 4 4 7 2 . 1 . . 2 . 3 2 . 2 1 4 3 2 . 4 5 . 1 1 2 Energy Gun 3 | . . . . . . . . . . . . . . . . . . 2 . . . 1 . . . . Energy Cannon 4 | . . . . . . . . . . . . . . . . . . . . . . 2 . . . 2 Ballistic Gun 16 | 2 3 . . 3 . . . . . 1 . 1 1 . 1 . 2 1 1 . . . . . . . Ballistic Cannon 8 | . 2 2 3 1 . . . . . . . . . . . . . . . . . . . . . . Launcher 14 | . . 2 1 1 . . 1 . . . . . 1 . 1 . 2 . 1 . 3 . . 1 . . Special Weapon 1 | . . . . . . . . . . . . 1 . . . . . . . . . . . . . . Impact Weapon 3 | . . . . 2 1 . . . . . . . . . . . . . . . . . . . . . Slashing Weapon 4 | . . . . . 1 . . . . 1 . 1 . . . 1 . . . . . . . . . . Piercing Weapon 4 | . . . . . . . . . . . . . . . . . . . . . 1 2 . . 1 . Special Melee Weapon . | . . . . . . . . . . . . . . . . . . . . . . . . . . . Unidentified Prototypes 21 | . . . . 1 . 1 1 . . . . 1 . 5 . 1 . 2 . . 2 4 1 2 . . Parts Lost 48 | . . . 2 2 . . . . . . 2 . . . . . 2 2 11 . 2 6 2 1 8 8 Power 6 | . . . . . . . . . . . 1 . . . . . 1 . 1 . . 1 . . 2 . Propulsion 21 | . . . 1 . . . . . . . 1 . . . . . 1 1 5 . 1 3 . . 4 4 Utility 16 | . . . . 2 . . . . . . . . . . . . . . 3 . 1 2 2 . 2 4 Weapon 5 | . . . 1 . . . . . . . . . . . . . . 1 2 . . . . 1 . . Highest Loss Streak 11 | . . . 1 1 . . . . . . 2 . . . . . 1 1 11 . 2 4 2 1 8 5 To Critical Strikes . | . . . . . . . . . . . . . . . . . . . . . . . . . . . Average Slot Usage (%) 90 | . 99 98 99 92 95 99 92 92 92 89 93 82 83 83 93 94 94 95 88 75 75 84 72 82 86 41 Engine 4 | . 13 12 11 9 7 6 . . . . . . . . 4 5 2 . . . . . . . . . Reactor 1 | . . . . . . . . . . 2 4 . . 1 . . 2 5 5 5 4 8 7 8 6 . Treads 6 | . . 26 32 35 . . . . . . . . . . . . . . . . . . . . . . Leg 1 | . 28 1 . . . . . . . . . . . . . . . . . . . . . . . . Flight 20 | . . . . . 28 29 28 28 28 27 26 22 22 23 27 30 29 30 27 25 26 30 26 28 26 9 Device 12 | . 14 14 11 13 19 22 21 21 21 18 12 11 11 8 10 10 9 10 8 5 8 9 8 8 7 2 Storage 5 | . 14 14 11 9 . . . . . . 3 5 5 5 5 5 5 5 5 5 4 4 2 4 3 . Processor 3 | . . . . . 6 7 7 7 7 6 5 5 5 5 5 5 5 5 5 5 4 4 4 4 5 3 Hackware 17 | . . . . . 12 14 14 14 14 17 26 27 27 27 27 29 30 30 28 25 22 21 18 23 24 15 Protection 1 | . . . 10 8 2 . . . . . . . . . . . . . . . . . . . . . Ballistic Gun 4 | . 20 . . 8 7 7 5 . . 4 5 4 4 5 5 5 4 3 . . . . . . . . Ballistic Cannon 4 | . 7 21 21 8 . . . . . . . . . . . . . . . . . . . . . . Launcher 1 | . . 7 . . . . 1 7 7 1 . . . . . . . . 1 5 2 . . 1 . . Impact Weapon 1 | . . . . 1 7 7 7 7 7 1 . . . . . . . . . . . . . . . . Slashing Weapon 2 | . . . . . . . . . . 4 5 4 5 5 5 5 5 5 3 . . . . . . . Peak Build Rating 162 | 7 8 10 19 29 44 45 50 44 44 71 80 79 79 89 89 106 114 117 117 86 116 140 119 134 162 116 Average Rating 68 | 4 7 8 13 23 39 44 45 44 44 57 77 72 72 77 83 100 109 114 102 86 103 119 111 127 148 101 On Entrance 68 | . 7 7 10 16 27 44 45 44 44 44 71 71 73 73 89 83 106 114 117 86 86 116 100 119 131 116 Naked Turns . | . . . . . . . . . . . . . . . . . . . . . . . . . . . Heaviest Build 60 | 13 22 54 57 60 18 15 17 17 17 22 31 19 21 36 36 33 43 43 43 29 45 45 41 47 50 22 Greatest Support 80 | 20 20 40 60 80 18 18 18 18 18 34 34 21 21 36 36 42 43 43 43 34 55 58 59 59 59 31 Greatest Overweight (x) 11 | . 1 1 2 . . . . . . . . . . 5 . . . . 3 . . 1 . . 11 2 Average Overweight (x) . | . . . . . . . . . . . . . . . . . . . . . . . . . . . Largest Inventory Capacity 20 | 8 15 20 20 20 20 5 5 5 5 5 10 10 10 10 10 15 15 15 15 10 10 10 10 10 10 5 Average Capacity 11 | 7 9 19 20 20 5 5 5 5 5 5 8 10 10 10 10 13 15 15 13 10 10 10 7 10 9 5 Most Carried 20 | 4 10 12 20 20 20 5 5 5 5 5 7 9 9 10 10 15 15 15 15 4 10 9 7 10 10 5 Average Carried 9 | 2 8 11 17 19 5 4 5 5 5 4 5 8 9 9 9 11 12 14 11 4 7 8 5 8 8 4 Final Capacity 20 | 8 10 20 20 20 5 5 5 5 5 5 10 10 10 10 10 15 15 15 10 10 10 10 10 10 5 5 Final Carried 20 | 3 10 12 20 20 5 5 5 5 5 5 6 9 9 10 10 14 15 15 4 4 9 7 5 10 5 5 Class Distribution -------------------- 36% | Wizard-Scout 24% | Hacker-Scout 18% | Mutant 7% | Scavenger-Mutant 5% | Hacker-Assassin Dominant Class ---------------- Mutant | -10/Materials Mutant | -10/Mines Mutant | -9/Materials Scavenger-Mutant | -8/Materials Hacker-Sprinter | -7/Factory Hacker-Scout | -7/Lower Caves Hacker-Scout | -7/Lower Caves Hacker-Scout | -7/Data Miner Hacker-Scout | -6/Proximity Caves Hacker-Scout | -6/Factory Hacker-Scout | -5/Factory Hacker-Assassin | -5/Upper Caves Hacker-Scout | -5/Upper Caves Hacker-Assassin | -5/Zhirov Wizard-Scout | -4/Proximity Caves Wizard-Scout | -4/Factory Wizard-Scout | -4/Extension Wizard-Scout | -4/Cetus Wizard-Scout | -4/Archives Wizard-Sprinter | -4/Hub_04(d) Wizard-Scout | -3/Research Wizard-Scout | -3/Testing Hacker-Scout | -2/Research Wizard-Scout | -2/Quarantine Wizard-Scout | -2/Section 7 Alien-Mutant | -1/Access Resources | -11 -10 -10 -9 -8 -7 -7 -7 -7 -6 -6 -5 -5 -5 -5 -4 -4 -4 -4 -4 -4 -3 -3 -2 -2 -2 -1 ----------- Run | Yrd Mat Min Mat Mat Fac Low Low Dat Pro Fac Fac Upp Upp Zhi Pro Fac Ext Cet Arc Hub Res Tes Res Qua Sec Acc Matter Collected 3468 | 274 90 237 483 533 134 122 253 . 39 93 43 30 60 100 20 146 135 47 . . 131 218 . 197 . 83 Remotely . | . . . . . . . . . . . . . . . . . . . . . . . . . . . Salvage Created 4608 | 20 222 411 567 564 134 33 221 . 140 134 70 . 104 286 58 336 554 47 106 . . 161 70 261 109 . Parts 305 | 4 34 48 54 35 2 4 6 . 3 15 6 . 3 3 5 20 24 . 11 . . 6 6 11 5 . Haulers Intercepted 8 | . 1 . . 3 1 . 1 . . . . . . . . 1 1 . . . . . . . . . Recyclers Shooed 5 | . 4 . 1 . . . . . . . . . . . . . . . . . . . . . . . Parts Field Recycled . | . . . . . . . . . . . . . . . . . . . . . . . . . . . Retrieved Matter . | . . . . . . . . . . . . . . . . . . . . . . . . . . . Parts Self-Destructed 30 | . . . . . . 4 8 . 2 . . 5 6 1 4 . . . . . . . . . . . Prevented 10 | . . . . . . 1 1 . . . . 3 5 . . . . . . . . . . . . . Kills | -11 -10 -10 -9 -8 -7 -7 -7 -7 -6 -6 -5 -5 -5 -5 -4 -4 -4 -4 -4 -4 -3 -3 -2 -2 -2 -1 ------- Run | Yrd Mat Min Mat Mat Fac Low Low Dat Pro Fac Fac Upp Upp Zhi Pro Fac Ext Cet Arc Hub Res Tes Res Qua Sec Acc Combat Hostiles Destroyed 81 | . 9 19 25 7 . . 5 . 3 . . . . . 3 . 9 1 . . . . . . . . Melee 7 | . . . . . . . . . 1 . . . . . 3 . 2 1 . . . . . . . . Guns 11 | . 9 . . 2 . . . . . . . . . . . . . . . . . . . . . . Cannons 31 | . . 6 22 3 . . . . . . . . . . . . . . . . . . . . . . AOE 32 | . . 13 3 2 . . 5 . 2 . . . . . . . 7 . . . . . . . . . Classes Destroyed 16 | 1 4 3 . 2 . 1 . . . . . . 1 . 2 1 . . . . . . . . 1 . Worker 2 | . . . . . . . . . . . . . . . . 1 . . . . . . 1 . . . Builder 5 | . . 1 . . . . . . . 3 . . . . . 1 . . . . . . . . . . Tunneler 7 | 1 . 5 1 . . . . . . . . . . . . . . . . . . . . . . . Hauler 8 | . 1 . . 3 1 . 1 . . . . . . . . 1 1 . . . . . . . . . Recycler 6 | . . . . 2 1 . . . . . . . . . . . 1 . . . . 1 . 1 . . Minesweeper 1 | . . . . . . . . . . . . . . . 1 . . . . . . . . . . . Operator 4 | . 1 . . . . . . . . 2 . . . . . . . . . . . . . 1 . . Drone 3 | . . . . . . . . . . . . . . . 3 . . . . . . . . . . . Watcher 21 | . 1 . 2 2 1 . . . . 1 2 . . . . 5 2 . . . . 1 1 2 1 . Swarmer 41 | . 9 9 13 . . . . . 3 . . . . . . . 7 . . . . . . . . . Grunt 24 | . . 8 6 4 . . 5 . . . . . . . . . 1 . . . . . . . . . Researcher 1 | . . . . . . . . . . . . . . . . . . . . . . . . . 1 . Sentry 11 | . . 2 6 2 . . . . . . . . . . . . 1 . . . . . . . . . Hunter 1 | . . . . 1 . . . . . . . . . . . . . . . . . . . . . . Cetus Guard 1 | . . . . . . . . . . . . . . . . . . 1 . . . . . . . . Samaritan 2 | . . . . . . . . . . . . . 2 . . . . . . . . . . . . . Tinkerer 1 | . . . . . . 1 . . . . . . . . . . . . . . . . . . . . Best Kill Streak 14 | 1 3 14 6 4 2 . 3 . 3 2 1 . . . 2 2 5 1 . . . 1 1 2 1 . Combat Bots Only 10 | . 3 10 6 3 . . 3 . 3 . . . . . 2 . 5 1 . . . . . . . . Max Kills in Single Turn 4 | 1 1 4 3 2 1 1 1 . 2 1 1 . 1 . 1 1 4 1 . . . 1 1 1 1 . Gunslinging . | . . . . . . . . . . . . . . . . . . . . . . . . . . . Exploded 4 | . . 3 3 2 . . 1 . 2 . . . . . . . 4 . . . . . . . . . Melee 1 | . . . . . . . . . 1 . . . . . 1 . 1 1 . . . . . . . . Uniques/NPCs Destroyed . | . . . . . . . . . . . . . . . . . . . . . . . . . . . Combat | -11 -10 -10 -9 -8 -7 -7 -7 -7 -6 -6 -5 -5 -5 -5 -4 -4 -4 -4 -4 -4 -3 -3 -2 -2 -2 -1 -------- Run | Yrd Mat Min Mat Mat Fac Low Low Dat Pro Fac Fac Upp Upp Zhi Pro Fac Ext Cet Arc Hub Res Tes Res Qua Sec Acc Hostile Shots Fired 583 | . 31 52 89 44 . . 8 . 6 1 13 1 . . 21 5 29 4 10 3 48 20 5 29 87 77 Missed 246 | . 10 16 29 11 . . 5 . 2 1 6 1 . . 11 3 9 2 6 3 30 11 1 20 34 35 Damage Taken 8873 | . 170 452 621 661 . . 98 . 65 . 252 . . . 138 39 494 121 1028 . 363 200 83 198 1949 1941 Core 3806 | . 42 58 78 86 . . 34 . . . 114 . . . . 21 229 . 559 . 23 . . 45 1194 1323 Absorbed by Shields 29 | . . . . . . . . . . . . . . . . . 29 . . . . . . . . . Regen/Repaired (Parts) 348 | . . . . . 11 . . . . 49 55 . . . . . . . . . . 33 58 142 . . Core Remaining (%) 69 | 100 . 60 80 84 . . . . 95 100 . . . . 88 . . . . 29 . 98 . . 14 17 Volleys Fired 196 | 2 36 21 49 38 . . 16 . 3 9 . . 3 . 2 . 5 . . . 8 . . 1 . 3 Largest 2 | 2 2 2 2 2 . . 1 . 1 1 . . 1 . 1 . 1 . . . 1 . . 1 . 1 Hottest 120 | 40 70 70 70 70 . . 36 . 36 28 . . 36 . 36 . 36 . . . 36 . . 36 . 120 Shots Fired 331 | 4 72 33 97 75 . . 16 . 3 9 . . 3 . 2 . 5 . . . 8 . . 1 . 3 Gun 117 | 4 70 . . 32 . . . . . 9 . . 1 . . . 1 . . . . . . . . . Cannon 167 | . 2 24 96 42 . . . . . . . . . . . . . . . . . . . . . 3 Launcher 47 | . . 9 1 1 . . 16 . 3 . . . 2 . 2 . 4 . . . 8 . . 1 . . Special . | . . . . . . . . . . . . . . . . . . . . . . . . . . . Kinetic 281 | 4 72 24 96 74 . . . . . 9 . . 1 . . . 1 . . . . . . . . . Thermal 3 | . . . . . . . . . . . . . . . . . . . . . . . . . . 3 Explosive 47 | . . 9 1 1 . . 16 . 3 . . . 2 . 2 . 4 . . . 8 . . 1 . . Electromagnetic . | . . . . . . . . . . . . . . . . . . . . . . . . . . . Robot Hit Streak 14 | 2 14 7 9 13 . . . . . 5 . . . . . . . . . . . . . . . . Robot Miss Streak 5 | 2 5 1 4 3 . . . . . 2 . . . . . . . . . . . . . . . . Penetration Max . | . . . . . . . . . . . . . . . . . . . . . . . . . . . Secondary Targets 1 | . . . . 1 . . . . . . . . . . . . . . . . . . . . . . Max Gunslinging Chain 1 | . . . . 1 . . . . . . . . . . . . . . . . . . . . . . Shots Hit Robots 267 | 2 43 22 57 52 3 3 1 . 3 10 3 . 2 6 4 13 20 3 4 . . 2 2 6 6 . Core Hits 161 | 2 15 31 30 21 1 2 15 . 2 3 1 . 1 2 1 8 13 2 2 . 1 2 1 3 2 . Critical Kills 2 | . 1 . . . . 1 . . . . . . . . . . . . . . . . . . . . Critical Parts Destroyed 2 | . . . . 1 . 1 . . . . . . . . . . . . . . . . . . . . Critical Strikes 24 | . 1 3 5 3 . 2 . . . . . . . . . 1 7 . . . . 1 . 1 . . Destroy 1 | . 1 . . . . . . . . . . . . . . . . . . . . . . . . . Blast 10 | . . 3 5 2 . . . . . . . . . . . . . . . . . . . . . . Smash 3 | . . . . 1 . 2 . . . . . . . . . . . . . . . . . . . . Sever 8 | . . . . . . . . . . . . . . . . 1 7 . . . . . . . . . Impale 2 | . . . . . . . . . . . . . . . . . . . . . . 1 . 1 . . Melee Attacks 286 | . . . . 3 10 13 12 . 6 36 17 4 3 6 13 42 30 5 4 . 5 19 15 20 23 . Impact 52 | . . . . 3 10 13 12 . 6 8 . . . . . . . . . . . . . . . . Slashing 152 | . . . . . . . . . . 28 17 4 3 6 13 42 30 5 4 . . . . . . . Piercing 82 | . . . . . . . . . . . . . . . . . . . . . 5 19 15 20 23 . Sneak Attacks 36 | . . . . 1 3 1 1 . . 2 2 . 2 . 3 5 7 . 1 . . 1 2 3 2 . Combat Hostiles 5 | . . . . . . . . . . . . . . . 2 . 3 . . . . . . . . . Follow-up Attacks 1 | . . . . . . . . . . . . . . . . . . . . . . . . . 1 . Damage Inflicted 12320 | 17 384 1111 1252 1078 329 347 450 . 576 475 223 . 187 487 282 968 1999 153 538 . 28 172 169 556 539 . Guns 839 | 17 359 . . 366 . . . . . 97 . . . . . . . . . . . . . . . . Cannons 1967 | . 17 311 1150 489 . . . . . . . . . . . . . . . . . . . . . . Explosions 2251 | . . 798 102 159 . . 398 . 302 . . . . . . . 464 . . . 28 . . . . . Melee 7253 | . . . . 64 329 347 52 . 274 378 223 . 187 487 282 968 1535 153 538 . . 172 169 556 539 . Ramming 10 | . 8 2 . . . . . . . . . . . . . . . . . . . . . . . . Kinetic 2806 | 17 376 311 1150 855 . . . . . 97 . . . . . . . . . . . . . . . . Thermal . | . . . . . . . . . . . . . . . . . . . . . . . . . . . Explosive 2251 | . . 798 102 159 . . 398 . 302 . . . . . . . 464 . . . 28 . . . . . Electromagnetic . | . . . . . . . . . . . . . . . . . . . . . . . . . . . Impact 1066 | . . . . 64 329 347 52 . 274 . . . . . . . . . . . . . . . . . Slashing 4751 | . . . . . . . . . . 378 223 . 187 487 282 968 1535 153 538 . . . . . . . Piercing 1436 | . . . . . . . . . . . . . . . . . . . . . . 172 169 556 539 . Highest Corruption 11 | . . . . . . . . . . . . . . . . 1 1 1 1 1 9 11 . . . . Average Corruption 3 | . . . . . . . . . . . . . . . . 1 1 1 1 1 7 9 . . . . Corruption Purged . | . . . . . . . . . . . . . . . . . . . . . . . . . . . Corruption Blocked . | . . . . . . . . . . . . . . . . . . . . . . . . . . . Effects 32 | . . . . . . . . . . . . . . . . 2 5 2 1 . 11 11 . . . . Message Errors 4 | . . . . . . . . . . . . . . . . . 1 . 1 . 1 1 . . . . Matter Fused 11 | . . . . . . . . . . . . . . . . 1 1 1 . . 3 5 . . . . Heat Flow Errors 5 | . . . . . . . . . . . . . . . . 1 . . . . 2 2 . . . . Energy Discharges 7 | . . . . . . . . . . . . . . . . . . 1 . . 4 2 . . . . Data Loss (minor) 4 | . . . . . . . . . . . . . . . . . 2 . . . 1 1 . . . . Data Loss (major) 1 | . . . . . . . . . . . . . . . . . 1 . . . . . . . . . Overload Shots . | . . . . . . . . . . . . . . . . . . . . . . . . . . . Overflow Damage 2239 | . . 54 24 64 184 118 32 . 235 138 58 . 68 227 100 194 258 . 149 . . . 58 100 178 . Projectiles 24 | . . . 24 . . . . . . . . . . . . . . . . . . . . . . . Explosions 160 | . . 54 . . . . . . 66 . . . . . . . 40 . . . . . . . . . Melee 2055 | . . . . 64 184 118 32 . 169 138 58 . 68 227 100 194 218 . 149 . . . 58 100 178 . Knockbacks 23 | . . . 14 6 2 . . . 1 . . . . . . . . . . . . . . . . . Impact 4 | . . . . 1 2 . . . 1 . . . . . . . . . . . . . . . . . Kinetic 17 | . . . 12 5 . . . . . . . . . . . . . . . . . . . . . . Secondary 2 | . . . 2 . . . . . . . . . . . . . . . . . . . . . . . Self-Inflicted Damage 182 | . . 42 . . . . 50 . . . . . . . . . . . . . 30 . . 60 . . Shots 6 | . . 2 . . . . 1 . . . . . . . . . . . . . 2 . . 1 . . Rammed 1 | . . . . . . . . . . . . . . . . . . . . . . . . . 1 . Targets Rammed 4 | . 2 1 . . . . . . . . . . . . . . . . . . . . . . 1 . Kicked 3 | . 2 1 . . . . . . . . . . . . . . . . . . . . . . . . Crushed . | . . . . . . . . . . . . . . . . . . . . . . . . . . . Highest Temperature 631 | . 9 38 153 36 . . 16 . 2 . 5 . . . . 104 18 6 6 . 325 631 16 347 151 . Average Temperature 69 | . 6 16 43 16 . . 8 . 2 . 5 . . . . 44 8 5 5 . 114 109 5 155 45 . Received Heat Transfer 885 | . . 120 168 183 . . 45 . 9 . 18 . . . . . 108 9 33 . 39 9 9 9 36 90 Effects 14 | . . . . . . . . . . . . . . . . . . . . . 2 11 . 1 . . Shutdowns 3 | . . . . . . . . . . . . . . . . . . . . . . 2 . 1 . . Energy Bleed 5 | . . . . . . . . . . . . . . . . . . . . . 2 3 . . . . Matter Decay 1 | . . . . . . . . . . . . . . . . . . . . . . 1 . . . . Short Circuit 1 | . . . . . . . . . . . . . . . . . . . . . . 1 . . . . Damage (major) 4 | . . . . . . . . . . . . . . . . . . . . . . 4 . . . . Siege Activations . | . . . . . . . . . . . . . . . . . . . . . . . . . . . Robots Corrupted 5 | . . . . 1 2 . 1 . 1 . . . . . . . . . . . . . . . . . Combat Hostiles 1 | . . . . . . . . . 1 . . . . . . . . . . . . . . . . . Parts Fried 4 | . . . . . 2 . 1 . 1 . . . . . . . . . . . . . . . . . Impact Corruptions 18 | . . . . 3 5 2 1 . 7 . . . . . . . . . . . . . . . . . Robots Melted . | . . . . . . . . . . . . . . . . . . . . . . . . . . . Combat Hostiles . | . . . . . . . . . . . . . . . . . . . . . . . . . . . Parts Melted . | . . . . . . . . . . . . . . . . . . . . . . . . . . . Heat Transferred . | . . . . . . . . . . . . . . . . . . . . . . . . . . . Parts Sabotaged . | . . . . . . . . . . . . . . . . . . . . . . . . . . . Parts Stolen . | . . . . . . . . . . . . . . . . . . . . . . . . . . . Parts Stripped . | . . . . . . . . . . . . . . . . . . . . . . . . . . . Power Chain Reactions . | . . . . . . . . . . . . . . . . . . . . . . . . . . . Alert | -11 -10 -10 -9 -8 -7 -7 -7 -7 -6 -6 -5 -5 -5 -5 -4 -4 -4 -4 -4 -4 -3 -3 -2 -2 -2 -1 ------- Run | Yrd Mat Min Mat Mat Fac Low Low Dat Pro Fac Fac Upp Upp Zhi Pro Fac Ext Cet Arc Hub Res Tes Res Qua Sec Acc Peak Influence 2456 | 5 323 335 578 346 128 . . . . 168 272 . . . . 193 659 625 431 163 640 665 430 341 1987 2456 Initial 1192 | . 3 85 130 241 112 . . . . 46 37 . . . . . 51 290 170 112 85 360 373 14 191 1192 Average 278 | 2 150 143 333 272 62 . . . . 93 123 . . . . 47 334 442 283 141 353 397 318 133 593 1876 Maximum Alert Level 5 | . 1 1 2 2 . . . . . . 1 . . . . . 2 2 2 . 2 2 2 1 5 5 Low Security (%) 52 | 100 78 66 20 2 100 . . . . 100 84 . . . . 100 26 . 27 100 21 14 25 87 57 . Level 1 26 | . 21 33 49 97 . . . . . . 15 . . . . . 25 7 59 . 36 41 50 12 15 . Level 2 17 | . . . 30 . . . . . . . . . . . . . 47 92 13 . 41 43 24 . . . Level 3 . | . . . . . . . . . . . . . . . . . . . . . . . . . . . Level 4 . | . . . . . . . . . . . . . . . . . . . . . . . . . . 4 Level 5 . | . . . . . . . . . . . . . . . . . . . . . . . . . . . High Security . | . . . . . . . . . . . . . . . . . . . . . . . . . . . Max Security 3 | . . . . . . . . . . . . . . . . . . . . . . . . . 27 95 Squads Dispatched 74 | . 2 . 2 1 2 . . . . 2 4 . . . . 5 1 . . 1 7 7 4 1 18 17 Investigation 20 | . 2 . 1 . 1 . . . . . 3 . . . . 4 . . . 1 5 1 2 . . . Extermination 4 | . . . . . 1 . . . . . . . . . . 1 . . . . . 1 . . 1 . Reinforcement 16 | . . . 1 1 . . . . . 2 1 . . . . . 1 . . . 2 3 2 1 2 . Assault 28 | . . . . . . . . . . . . . . . . . . . . . . 2 . . 12 14 Garrison . | . . . . . . . . . . . . . . . . . . . . . . . . . . . Intercept 6 | . . . . . . . . . . . . . . . . . . . . . . . . . 3 3 Searches Triggered . | . . . . . . . . . . . . . . . . . . . . . . . . . . . Data Miner Redirects 7 | . . . . . . . . . . . . . . . . 2 . . . 1 . 3 1 . . . Construction Impeded 1 | . . . . . . . . . . 1 . . . . . . . . . . . . . . . . Haulers Reinforced . | . . . . . . . . . . . . . . . . . . . . . . . . . . . Active Scanning Responses . | . . . . . . . . . . . . . . . . . . . . . . . . . . . Cargo Convoy Interrupts . | . . . . . . . . . . . . . . . . . . . . . . . . . . . Stealth | -11 -10 -10 -9 -8 -7 -7 -7 -7 -6 -6 -5 -5 -5 -5 -4 -4 -4 -4 -4 -4 -3 -3 -2 -2 -2 -1 --------- Run | Yrd Mat Min Mat Mat Fac Low Low Dat Pro Fac Fac Upp Upp Zhi Pro Fac Ext Cet Arc Hub Res Tes Res Qua Sec Acc Distress Signals 25 | . . . 3 1 . . . . . 1 . . . . . 2 3 2 . . 5 4 . 1 1 2 Communications Jammed . | . . . . . . . . . . . . . . . . . . . . . . . . . . . Distress Signals . | . . . . . . . . . . . . . . . . . . . . . . . . . . . Times Spotted 400 | . 17 18 32 14 . 3 19 . 6 10 10 2 . . 7 15 39 11 10 3 37 27 6 18 39 57 Peak Tracking Total 38 | . 4 6 5 5 1 5 5 . 5 4 4 2 . . 7 5 8 5 10 3 14 15 4 15 38 38 Tactical Retreats 65 | . 1 2 1 2 . 3 5 . . 3 3 . . . 2 4 4 1 . . 8 5 3 1 9 8 Traps | -11 -10 -10 -9 -8 -7 -7 -7 -7 -6 -6 -5 -5 -5 -5 -4 -4 -4 -4 -4 -4 -3 -3 -2 -2 -2 -1 ------- Run | Yrd Mat Min Mat Mat Fac Low Low Dat Pro Fac Fac Upp Upp Zhi Pro Fac Ext Cet Arc Hub Res Tes Res Qua Sec Acc Traps Triggered 13 | . 2 . . . . . . . . . 1 . . . . . 8 . . . . . 2 . . . Indirectly . | . . . . . . . . . . . . . . . . . . . . . . . . . . . Trap Hack Attempts . | . . . . . . . . . . . . . . . . . . . . . . . . . . . Triggered . | . . . . . . . . . . . . . . . . . . . . . . . . . . . Disarmed . | . . . . . . . . . . . . . . . . . . . . . . . . . . . Reprogrammed . | . . . . . . . . . . . . . . . . . . . . . . . . . . . Reused . | . . . . . . . . . . . . . . . . . . . . . . . . . . . Traps Extracted . | . . . . . . . . . . . . . . . . . . . . . . . . . . . Installed 9 | . . . . . . . . . . . . . . . 9 . . . . . . . . . . . Triggered 3 | . . . . . . 1 2 . . . . . . . . . . . . . . . . . . . Most Traps Carried 1 | . . . . . . . . . . . . . . . 1 1 . . . . . . . . . . Machines | -11 -10 -10 -9 -8 -7 -7 -7 -7 -6 -6 -5 -5 -5 -5 -4 -4 -4 -4 -4 -4 -3 -3 -2 -2 -2 -1 ---------- Run | Yrd Mat Min Mat Mat Fac Low Low Dat Pro Fac Fac Upp Upp Zhi Pro Fac Ext Cet Arc Hub Res Tes Res Qua Sec Acc Machines Disabled 29 | . . 1 . 2 . 1 . . . 1 . 1 . . . . 1 . . . . 6 . 6 10 . Max in Single Turn 1 | . . 1 . 1 . 1 . . . 1 . 1 . . . . 1 . . . . 1 . 1 1 . Garrison Access 4 | . . . . . . . . . . . . . . . . 1 . . . . 1 1 . 1 . . Machines Repaired . | . . . . . . . . . . . . . . . . . . . . . . . . . . . Machines Dismantled . | . . . . . . . . . . . . . . . . . . . . . . . . . . . Machines Sabotaged . | . . . . . . . . . . . . . . . . . . . . . . . . . . . Overloaded Fab Kills . | . . . . . . . . . . . . . . . . . . . . . . . . . . . Hacking | -11 -10 -10 -9 -8 -7 -7 -7 -7 -6 -6 -5 -5 -5 -5 -4 -4 -4 -4 -4 -4 -3 -3 -2 -2 -2 -1 --------- Run | Yrd Mat Min Mat Mat Fac Low Low Dat Pro Fac Fac Upp Upp Zhi Pro Fac Ext Cet Arc Hub Res Tes Res Qua Sec Acc Machines Accessed 93 | . 3 . 3 2 5 1 2 3 . 9 8 1 . 4 . 9 . 1 1 4 9 9 4 10 5 . Terminals 58 | . 2 . 2 2 3 . 1 . . 7 5 . . . . 5 . 1 . 4 6 6 2 7 5 . Fabricators 12 | . . . . . 1 . . . . 1 2 . . . . 3 . . . . 3 1 1 . . . Repair Stations 7 | . . . . . 1 . . . . 1 1 . . . . . . . . . . 1 1 2 . . Recycling Units 1 | . 1 . . . . . . . . . . . . . . . . . . . . . . . . . Scanalyzers 1 | . . . 1 . . . . . . . . . . . . . . . . . . . . . . . Garrison Access 3 | . . . . . . . . . . . . . . . . 1 . . . . . 1 . 1 . . Total Hacks 302 | . 12 . 13 7 9 1 2 26 . 27 23 1 . 17 . 29 . 2 25 10 33 25 13 17 10 . Successful 225 | . 7 . 7 3 7 1 2 26 . 14 17 1 . 17 . 21 . 1 25 6 17 16 13 15 9 . Failed 77 | . 5 . 6 4 2 . . . . 13 6 . . . . 8 . 1 . 4 16 9 . 2 1 . Catastrophic 10 | . . . . 1 1 . . . . 2 1 . . . . 1 . . . 2 1 1 . . . . Database Lockouts . | . . . . . . . . . . . . . . . . . . . . . . . . . . . Manual 94 | . 11 . 3 . . . . . . 7 5 1 . . . 14 . 1 . 8 18 10 4 6 6 . Terminals 171 | . 11 . 7 7 6 . 1 . . 24 15 . . . . 21 . 2 . 10 21 17 7 12 10 . Fabricators 33 | . . . . . 1 . . . . 1 5 . . . . 7 . . . . 12 4 3 . . . Repair Stations 16 | . . . . . 2 . . . . 2 3 . . . . . . . . . . 2 3 4 . . Recycling Units 1 | . 1 . . . . . . . . . . . . . . . . . . . . . . . . . Scanalyzers 6 | . . . 6 . . . . . . . . . . . . . . . . . . . . . . . Garrison Access 4 | . . . . . . . . . . . . . . . . 1 . . . . . 2 . 1 . . Terminal Hacks 165 | . 5 . 2 3 4 1 2 26 . 9 9 1 . 17 . 12 . 1 25 4 9 10 7 9 9 . Record 42 | . . . . . . . 1 6 . . . . . 5 . . . . 25 . 1 1 . 3 . . Part Schematic 22 | . . . . . . . . 12 . 2 1 . . 4 . 2 . . . . 1 . . . . . Robot Schematic 5 | . . . . . . . . 5 . . . . . . . . . . . . . . . . . . Robot Analysis 9 | . 4 . . . . . . . . . 1 . . 4 . . . . . . . . . . . . Prototype ID Bank 13 | . . . . . 1 . . 3 . 2 1 . . 4 . . . . . . . 1 . 1 . . Open Door 6 | . . . . . . 1 1 . . . . 1 . . . . . 1 . . . . . . 2 . Level Access Points 3 | . . . . . . . . . . . . . . . . . . . . 1 . 1 . . 1 . Branch Access Points 6 | . . . . 1 1 . . . . . . . . . . 1 . . . . 1 . 1 1 . . Machine Index 1 | . . . . . . . . . . . . . . . . 1 . . . . . . . . . . Terminal Index 7 | . . . 1 . . . . . . . 1 . . . . . . . . 1 1 . 1 1 1 . Fabricator Index 1 | . . . . . . . . . . . . . . . . . . . . . 1 . . . . . Alert Level 6 | . . . . . . . . . . 1 . . . . . . . . . 1 1 1 . 1 1 . Unreport Threat 20 | . . . . 1 1 . . . . 2 2 . . . . 2 . . . . . 4 5 . 3 . Locate Traps 4 | . . . 1 . 1 . . . . 2 . . . . . . . . . . . . . . . . Disarm Traps 1 | . . . . . . . . . . . . . . . . 1 . . . . . . . . . . Surveillance Status 1 | . . . . . . . . . . . . . . . . 1 . . . . . . . . . . Recall Investigation 6 | . . . . . . . . . . . 2 . . . . 3 . . . . 1 . . . . . Hauler Manifests 1 | . . . . . . . . . . . . . . . . 1 . . . . . . . . . . Registered Components 1 | . . . . . . . . . . . . . . . . . . . . . 1 . . . . . Zone Layout 9 | . 1 . . 1 . . . . . . 1 . . . . . . . . 1 1 2 . 2 . . Activate Exoskeleton 1 | . . . . . . . . . . . . . . . . . . . . . . . . . 1 . Fabricator Hacks 21 | . . . . . 1 . . . . 1 5 . . . . 6 . . . . 5 1 2 . . . Network Status 2 | . . . . . 1 . . . . . 1 . . . . . . . . . . . . . . . Load Schematic 10 | . . . . . . . . . . . 2 . . . . 3 . . . . 3 1 1 . . . Build 9 | . . . . . . . . . . 1 2 . . . . 3 . . . . 2 . 1 . . . Repair Station Hacks 15 | . . . . . 2 . . . . 2 2 . . . . . . . . . . 2 3 4 . . Scan Component 8 | . . . . . 1 . . . . 1 1 . . . . . . . . . . 1 2 2 . . Repair 7 | . . . . . 1 . . . . 1 1 . . . . . . . . . . 1 1 2 . . Recycling Unit Hacks . | . . . . . . . . . . . . . . . . . . . . . . . . . . . Scanalyzer 4 | . . . 4 . . . . . . . . . . . . . . . . . . . . . . . Insert Component 2 | . . . 2 . . . . . . . . . . . . . . . . . . . . . . . Analyze 2 | . . . 2 . . . . . . . . . . . . . . . . . . . . . . . Garrison Access Hacks 3 | . . . . . . . . . . . . . . . . 1 . . . . . 1 . 1 . . Seal Access 3 | . . . . . . . . . . . . . . . . 1 . . . . . 1 . 1 . . Unauthorized Hacks 17 | . 2 . 1 . . . . . . 2 1 . . . . 2 . . . 2 3 2 1 1 . . Terminals 11 | . 1 . 1 . . . . . . 2 1 . . . . 1 . . . 2 1 1 . 1 . . Assimilate 3 | . . . . . . . . . . 1 . . . . . 1 . . . . . 1 . . . . Botnet 6 | . 1 . 1 . . . . . . 1 1 . . . . . . . . . 1 . . 1 . . Detonate 2 | . . . . . . . . . . . . . . . . . . . . 2 . . . . . . Fabricators 5 | . . . . . . . . . . . . . . . . 1 . . . . 2 1 1 . . . Prioritize 5 | . . . . . . . . . . . . . . . . 1 . . . . 2 1 1 . . . Repair Stations . | . . . . . . . . . . . . . . . . . . . . . . . . . . . Recycling Units 1 | . 1 . . . . . . . . . . . . . . . . . . . . . . . . . Tunnel 1 | . 1 . . . . . . . . . . . . . . . . . . . . . . . . . Scanalyzers . | . . . . . . . . . . . . . . . . . . . . . . . . . . . Garrison Access . | . . . . . . . . . . . . . . . . . . . . . . . . . . . Data Cores Recovered 3 | . . . . . . . . . . 2 . . . . . . . . . . . . . 1 . . Used . | . . . . . . . . . . . . . . . . . . . . . . . . . . . Hacking Detections 66 | . 2 . 3 2 2 . 1 . . 8 8 . . . . 8 . . . 3 9 8 4 6 2 . Full Trace Events 17 | . 1 . 1 . 1 . . . . . 3 . . . . 4 . . . 1 3 1 2 . . . Feedback Events 2 | . . . . . . . . . . . . . . . . 1 . . . . . 1 . . . . Corruption 1 | . . . . . . . . . . . . . . . . 1 . . . . . . . . . . Hackware Fried 1 | . . . . . . . . . . . . . . . . . . . . . . 1 . . . . Feedback Blocked . | . . . . . . . . . . . . . . . . . . . . . . . . . . . Robot Schematics Acquired 6 | . . . . . . . . 5 . . . . . . . . . . . . . . . . 1 . Robots Built . | . . . . . . . . . . . . . . . . . . . . . . . . . . . Authchips . | . . . . . . . . . . . . . . . . . . . . . . . . . . . Time . | . . . . . . . . . . . . . . . . . . . . . . . . . . . Total Robot Build Rating . | . . . . . . . . . . . . . . . . . . . . . . . . . . . Part Schematics Acquired 24 | . . . 1 . . . . 12 . 2 1 . . 4 . 2 . . . . 1 . . . 1 . Parts Built 10 | . . . . . . . . . . 1 2 . . . . 3 . . . . 3 . 1 . . . Authchips . | . . . . . . . . . . . . . . . . . . . . . . . . . . . Time 679 | . . . . . . . . . . 128 159 . . . . 304 . . . . 71 . 17 . . . Total Part Build Rating 65 | . . . . . . . . . . 8 12 . . . . 19 . . . . 20 . 6 . . . Parts Repaired 7 | . . . . . 1 . . . . 1 1 . . . . . . . . . . 1 1 2 . . Time 257 | . . . . . 108 . . . . 38 20 . . . . . . . . . . 12 44 35 . . Parts Recycled . | . . . . . . . . . . . . . . . . . . . . . . . . . . . Recycled Matter . | . . . . . . . . . . . . . . . . . . . . . . . . . . . Retrieved Matter . | . . . . . . . . . . . . . . . . . . . . . . . . . . . Retrieved Components . | . . . . . . . . . . . . . . . . . . . . . . . . . . . Parts Scanalyzed 2 | . . . 2 . . . . . . . . . . . . . . . . . . . . . . . Part Schematics Acquired 1 | . . . 1 . . . . . . . . . . . . . . . . . . . . . . . Parts Damaged . | . . . . . . . . . . . . . . . . . . . . . . . . . . . Bothacking | -11 -10 -10 -9 -8 -7 -7 -7 -7 -6 -6 -5 -5 -5 -5 -4 -4 -4 -4 -4 -4 -3 -3 -2 -2 -2 -1 ------------ Run | Yrd Mat Min Mat Mat Fac Low Low Dat Pro Fac Fac Upp Upp Zhi Pro Fac Ext Cet Arc Hub Res Tes Res Qua Sec Acc Used RIF Installer . | . . . . . . . . . . . . . . . . . . . . . . . . . . . Robots Hacked . | . . . . . . . . . . . . . . . . . . . . . . . . . . . Non-combat . | . . . . . . . . . . . . . . . . . . . . . . . . . . . Combat . | . . . . . . . . . . . . . . . . . . . . . . . . . . . Robot Hacks Applied . | . . . . . . . . . . . . . . . . . . . . . . . . . . . Relay Couplers Released 1 | . . . . . . . . . . . . . . . . . . . . . 1 . . . . . Machine Destruction 1 | . . . . . . . . . . . . . . . . . . . . . 1 . . . . . Fabnet Peak Effective % . | . . . . . . . . . . . . . . . . . . . . . . . . . . . Robots Rewired 19 | . . . . . . . . . . . . . . . . . 17 . . . . 2 . . . . Allies Hacked . | . . . . . . . . . . . . . . . . . . . . . . . . . . . Hacks Repelled . | . . . . . . . . . . . . . . . . . . . . . . . . . . . Allies | -11 -10 -10 -9 -8 -7 -7 -7 -7 -6 -6 -5 -5 -5 -5 -4 -4 -4 -4 -4 -4 -3 -3 -2 -2 -2 -1 -------- Run | Yrd Mat Min Mat Mat Fac Low Low Dat Pro Fac Fac Upp Upp Zhi Pro Fac Ext Cet Arc Hub Res Tes Res Qua Sec Acc Total Allies 41 | . . . . . . . . . . . . . . . . 1 24 5 . . . 3 . . 1 7 Largest Group 8 | . . . . . . . . . . . . . . . . 1 8 8 8 . . 3 . . 1 8 Highest-Rated Group 1304 | . . . . . . . . . . . . . . . . 10 336 699 694 . . 337 . . 1204 1304 Highest-Rated Ally 1204 | . . . . . . . . . . . . . . . . 10 159 153 146 . . 163 . . 1204 1204 Total Orders 5 | . . . . . . . . . . . . . . . . . 4 1 . . . . . . . . STAY 1 | . . . . . . . . . . . . . . . . . 1 . . . . . . . . . ROAM 1 | . . . . . . . . . . . . . . . . . 1 . . . . . . . . . FOLLOW 2 | . . . . . . . . . . . . . . . . . 2 . . . . . . . . . GUARD 1 | . . . . . . . . . . . . . . . . . . 1 . . . . . . . . Ally Attacks 288 | . . . . . . . . . . . . . . . . . 116 59 42 . . 25 . . 17 29 Total Damage 12044 | . . . . . . . . . . . . . . . . . 2960 2360 1380 . . 2525 . . 1251 1568 Kills 58 | . . . . . . . . . . . . . . . . . 20 10 7 . . 13 . . 4 4 Allies Corrupted . | . . . . . . . . . . . . . . . . . . . . . . . . . . . Allies Melted 1 | . . . . . . . . . . . . . . . . . 1 . . . . . . . . . Intel | -11 -10 -10 -9 -8 -7 -7 -7 -7 -6 -6 -5 -5 -5 -5 -4 -4 -4 -4 -4 -4 -3 -3 -2 -2 -2 -1 ------- Run | Yrd Mat Min Mat Mat Fac Low Low Dat Pro Fac Fac Upp Upp Zhi Pro Fac Ext Cet Arc Hub Res Tes Res Qua Sec Acc Robot Analysis Total 9 | . 4 . . . . . . . . . 1 . . 4 . . . . . . . . . . . . Derelict Logs Recovered 7 | . . 2 . . . 2 1 . 2 . . . . . . . . . . . . . . . . . Drone Launches . | . . . . . . . . . . . . . . . . . . . . . . . . . . . Drone Recoveries . | . . . . . . . . . . . . . . . . . . . . . . . . . . . Exploration | -11 -10 -10 -9 -8 -7 -7 -7 -7 -6 -6 -5 -5 -5 -5 -4 -4 -4 -4 -4 -4 -3 -3 -2 -2 -2 -1 ------------- Run | Yrd Mat Min Mat Mat Fac Low Low Dat Pro Fac Fac Upp Upp Zhi Pro Fac Ext Cet Arc Hub Res Tes Res Qua Sec Acc Turns Passed 12387 | 68 621 1089 939 548 270 341 564 21 387 465 429 669 469 172 718 1082 853 475 98 26 440 394 228 383 405 233 Spaces Moved 16613 | 45 360 366 403 235 380 577 1450 75 347 738 766 504 463 160 772 1803 1216 346 189 114 1050 842 490 937 1241 744 Core 43 | 7 . . . . . . . . . . . . . 1 . . . . . . . . . . 1 34 Treads 964 | . . 326 403 235 . . . . . . . . . . . . . . . . . . . . . . Legs 438 | 38 360 40 . . . . . . . . . . . . . . . . . . . . . . . . Wheels . | . . . . . . . . . . . . . . . . . . . . . . . . . . . Hover . | . . . . . . . . . . . . . . . . . . . . . . . . . . . Flight 14776 | . . . . . 380 577 1450 75 347 738 766 504 463 159 772 1803 1216 346 189 114 1050 842 490 937 1082 476 Fastest Speed 6 | 50 120 120 160 160 28 28 28 28 28 27 27 39 39 28 28 25 25 25 23 23 12 6 7 7 7 31 Average Speed 39 | 109 133 225 160 160 28 28 28 28 28 27 27 39 39 85 28 25 25 25 28 23 20 18 20 19 23 37 Slowest Speed 600 | 120 190 240 320 160 28 28 28 28 28 28 31 39 39 300 28 25 28 25 194 23 23 88 22 20 600 150 Overloaded Moves 159 | . . . . . . . . . . . . . . . . . . . . . 64 22 3 59 11 . Propulsion Burnouts . | . . . . . . . . . . . . . . . . . . . . . . . . . . . Robots Hopped 51 | . . . . . . . . . . 1 . . . . 1 5 5 . . . 8 12 1 8 6 4 Cave-ins Triggered . | . . . . . . . . . . . . . . . . . . . . . . . . . . . Spacefolds 29 | . . . . . . . . . . . . . . . . . . . . . . . . . 20 9 Microwarps 23 | . . . . . . . . . . . . . . . . . . . . . . . . . 8 15 Exploration Rate (%) 52 | 3 64 76 42 23 15 72 89 68 63 25 19 67 62 59 71 25 84 69 90 16 28 84 17 93 77 24 Regions Visited 26 Branch Regions 16 Pre-discovered Areas 6 | . 1 . . . . . . 1 1 . . . . 3 . . . . . . . . . . . . Known Exits Taken 22 | . . . 1 . 1 1 1 1 1 1 1 1 1 1 1 1 1 1 1 1 1 1 1 1 1 . Unknown Exits Taken 4 | 1 1 1 . 1 . . . . . . . . . . . . . . . . . . . . . . Scrap Searched 12 | . . 1 . . . . 4 . 2 . . 2 2 . 1 . . . . . . . . . . . Spaces Dug 196 | . . . . 1 7 7 11 . 17 29 12 3 1 . 14 23 . . . . 27 11 13 12 5 3 Terrain Destroyed 495 | . . 69 6 5 7 7 98 . 41 29 12 3 24 . 22 23 36 . . . 69 11 13 12 5 3 Melee 144 | . . . . 1 7 7 11 . 1 29 12 3 1 . 9 23 . . . . 5 11 13 6 5 . Projectile 3 | . . . . . . . . . . . . . . . . . . . . . . . . . . 3 AOE 348 | . . 69 6 4 . . 87 . 40 . . . 23 . 13 . 36 . . . 64 . . 6 . . Terrain Rammed . | . . . . . . . . . . . . . . . . . . . . . . . . . . . Walls Destroyed . | . . . . . . . . . . . . . . . . . . . . . . . . . . . Machines Disabled . | . . . . . . . . . . . . . . . . . . . . . . . . . . . Actions | -11 -10 -10 -9 -8 -7 -7 -7 -7 -6 -6 -5 -5 -5 -5 -4 -4 -4 -4 -4 -4 -3 -3 -2 -2 -2 -1 --------- Run | Yrd Mat Min Mat Mat Fac Low Low Dat Pro Fac Fac Upp Upp Zhi Pro Fac Ext Cet Arc Hub Res Tes Res Qua Sec Acc Total 21421 | 58 443 597 614 328 534 734 1570 74 622 933 961 970 742 184 1249 2365 1707 725 224 113 1248 1029 584 1089 1179 545 Wait 4147 | . 18 194 85 24 108 132 86 . 267 138 167 455 270 . 449 501 307 369 21 . 170 163 63 120 32 8 Move 16148 | 44 359 365 402 234 379 576 1449 74 346 735 765 503 462 159 769 1792 1205 345 188 113 1033 818 487 921 1100 525 Hop 48 | . . . . . . . . . . 1 . . . . 1 5 5 . . . 8 11 1 7 5 4 Pick Up 113 | 5 12 5 29 6 4 3 1 . . 4 5 2 . 2 1 10 2 . 2 . 5 2 3 9 1 . Fast Attach 89 | 5 5 1 4 5 4 4 2 . . 2 1 1 1 8 1 2 . 3 5 . 7 4 6 5 12 1 Attach 57 | 2 . 2 7 2 9 . . . . 2 4 2 . 1 1 2 3 1 3 . 4 5 2 2 1 2 Detach 20 | . . . 3 . . . . . . . . 2 . . . 1 1 1 1 . 6 2 . . 1 2 Swap 41 | . 3 5 9 7 . . 1 . . 2 . . 2 1 2 5 4 . . . . . . . . . Drop 115 | . 8 3 26 9 20 6 3 . . 4 2 1 1 7 1 5 . 1 . . 2 3 3 4 6 . Fire 196 | 2 36 21 49 38 . . 16 . 3 9 . . 3 . 2 . 5 . . . 8 . . 1 . 3 Melee 283 | . . . . 3 10 13 12 . 6 36 17 4 3 6 13 42 30 5 4 . 5 19 15 20 20 . Ram . | . . . . . . . . . . . . . . . . . . . . . . . . . . . Kick 3 | . 2 1 . . . . . . . . . . . . . . . . . . . . . . . . Crush . | . . . . . . . . . . . . . . . . . . . . . . . . . . . Escape Stasis 119 | . . . . . . . . . . . . . . . . . 114 . . . . . 4 . 1 . Rewire 33 | . . . . . . . . . . . . . . . . . 31 . . . . 2 . . . . Trap 9 | . . . . . . . . . . . . . . . 9 . . . . . . . . . . . Miscellaneous . | . . . . . . . . . . . . . . . . . . . . . . . . . . . Route ------- -11/Scrapyard -10/Materials (discovered 3 exits: *Mat x2 / [*Min]) -10/Mines -9/Materials (discovered 3 exits: *Mat x2 / Min) -8/Materials -7/Factory (discovered 3 exits: Sto / *Low x2) -7/Lower Caves -7/Lower Caves (discovered 2 exits: *Fac / *Dat) -7/Data Miner -6/Proximity Caves -6/Factory (discovered 2 exits: *Fac x2) -5/Factory (discovered 2 exits: *Upp x2) -5/Upper Caves -5/Upper Caves -5/Zhirov -4/Proximity Caves -4/Factory (discovered 6 exits: *Res x2 / Upp x2 / *Ext x2) -4/Extension (discovered 2 exits: *Res / *Cet) -4/Cetus (discovered 2 exits: *Res / *Arc) -4/Archives (discovered 3 exits: *Res / *Hub x2) -4/Hub_04(d) (discovered 4 exits: *Res x4) -3/Research (discovered 3 exits: *Arm / *Tes x2) -3/Testing -2/Research (discovered 2 exits: *Qua x2) -2/Quarantine (discovered 2 exits: *Acc / *Sec) -2/Section 7 -1/Access Tau Ceti IV Orbit History --------- Turn | Location | Event 4 | -11/Scrapyard | Discovered new exit (range 15) 69 | -11/Scrapyard | Entered Materials 125 | -10/Materials | Discovered new exit (range 7) 316 | -10/Materials | Build established: Mutant 322 | -10/Materials | Discovered new exit (range 16) 400 | -10/Materials | Discovered new exit (range 15) 690 | -10/Materials | Entered Mines 735 | -10/Mines | Learned location of 1 exit from Materials 1241 | -10/Mines | Excavation squad dispatched 1241 | -10/Mines | A large section of the Mines collapsed 1491 | -10/Mines | Excavation squad dispatched 1636 | -10/Mines | Found a damaged Exp. Sensor Array with a note attached 1641 | -10/Mines | Found Prototype Device 1661 | -10/Mines | Learned 4 Materials zone layouts 1741 | -10/Mines | Excavation squad dispatched 1747 | -10/Mines | Discovered new exit (range 8) 1770 | -10/Mines | Destroyed 10 combat bots 1779 | -10/Mines | Entered Materials 1779 | -9/Materials | Evolved 2 slots: Propulsion x1, Utility x1 1780 | -9/Materials | Identified exit to Mines 1781 | -9/Materials | Identified exit to Materials 2072 | -9/Materials | Identified Exp. Sensor Array 2141 | -9/Materials | Discovered exit to Materials (range 16) 2612 | -9/Materials | Build established: Scavenger-Mutant 2718 | -9/Materials | Entered another Materials area 2718 | -8/Materials | Evolved 2 slots: Propulsion x1, Utility x1 3189 | -8/Materials | Discovered new exit (range 9) 3266 | -8/Materials | Entered Factory 3266 | -7/Factory | Evolved 2 slots: Utility x2 3338 | -7/Factory | Identified exit to Storage 3338 | -7/Factory | Identified exit to Lower Caves 3531 | -7/Factory | Repaired Exp. Sensor Array 3536 | -7/Factory | Entered Lower Caves 3744 | -7/Lower Caves | Learned Factory security intel 3771 | -7/Lower Caves | Encountered a Warlord checkpoint 3774 | -7/Lower Caves | Learned Factory garrison access intel 3782 | -7/Lower Caves | Discovered new exit (range 11) 3861 | -7/Lower Caves | Build established: Hacker-Scout 3869 | -7/Lower Caves | Found Alien Artifact 3869 | -7/Lower Caves | Identified Core Expander 3869 | -7/Lower Caves | Installed Core Expander, added new Propulsion slot 3876 | -7/Lower Caves | Identified exit to Lower Caves 3877 | -7/Lower Caves | Entered another Lower Caves area 3957 | -7/Lower Caves | Discovered new exit (range 14) 4001 | -7/Lower Caves | Learned location of 2 exits from Factory 4095 | -7/Lower Caves | Discovered new exit (range 14) 4273 | -7/Lower Caves | Identified exit to Data Miner 4441 | -7/Lower Caves | Entered Data Miner 4441 | -7/Data Miner | Discovered new exit (range 6) 4447 | -7/Data Miner | Met Data Miner 4452 | -7/Data Miner | Learned location of Section 7 (-2) 4452 | -7/Data Miner | Acquired the access code to Warlord's prototype stash 4456 | -7/Data Miner | Received God Mode back door access code from Data Miner 4462 | -7/Data Miner | Identified exit to Proximity Caves 4462 | -7/Data Miner | Entered Proximity Caves 4478 | -6/Proximity Caves | Found DCF Scrap (11 items) 4500 | -6/Proximity Caves | Learned location of Zion (-6) 4511 | -6/Proximity Caves | Learned 4 Factory zone layouts 4577 | -6/Proximity Caves | Discovered new exit (range 8) 4720 | -6/Proximity Caves | Received a Behemoth hack from an annoying Tinkerer 4849 | -6/Proximity Caves | Identified exit to Factory 4849 | -6/Proximity Caves | Entered Factory 4849 | -6/Factory | Evolved 2 slots: Propulsion x1, Utility x1 4850 | -6/Factory | Identified exit to Factory 4853 | -6/Factory | Loaded intel: 4 garrison access locations 5116 | -6/Factory | Fabricated Impulse Thruster Array (x1) 5301 | -6/Factory | Repaired Imp. Grenade Launcher 5314 | -6/Factory | Entered another Factory area 5314 | -5/Factory | Evolved 2 slots: Utility x2 5339 | -5/Factory | Repaired Lgt. Antimatter Reactor 5386 | -5/Factory | Discovered new exit (range 15) 5389 | -5/Factory | Identified exit to Upper Caves 5468 | -5/Factory | Fabricated Adv. Hacking Suite (x1) 5588 | -5/Factory | Fabricated Adv. Hacking Suite? 5688 | -5/Factory | Discovered exit to Upper Caves (range 14) 5743 | -5/Factory | Entered Upper Caves 5860 | -5/Upper Caves | Acquired the password to a Derelict Tinkerer's latest research 5863 | -5/Upper Caves | Found Prototype Special Weapon 5892 | -5/Upper Caves | Identified Molecular Deconstructor 6210 | -5/Upper Caves | Encountered a Warlord checkpoint 6407 | -5/Upper Caves | Discovered new exit (range 14) 6411 | -5/Upper Caves | Identified exit to Upper Caves 6412 | -5/Upper Caves | Entered another Upper Caves area 6785 | -5/Upper Caves | Discovered new exit (range 5) 6786 | -5/Upper Caves | Identified exit to Zhirov 6881 | -5/Upper Caves | Entered Zhirov 6881 | -5/Zhirov | Discovered new exit (range 3) 6884 | -5/Zhirov | Identified exit to Proximity Caves 6928 | -5/Zhirov | Learned location of Quarantine (-2) 6928 | -5/Zhirov | Learned location of Testing (-3) 6928 | -5/Zhirov | Learned location of Command (-1) 6958 | -5/Zhirov | Found Alien Artifact 6958 | -5/Zhirov | Identified Integrated Reactor 6958 | -5/Zhirov | Installed Integrated Reactor, increased core energy generation (+10) 6976 | -5/Zhirov | Found Alien Artifact 7053 | -5/Zhirov | Entered Proximity Caves 7085 | -4/Proximity Caves | Spotted B-86 Titan 7236 | -4/Proximity Caves | Attracted the attention of an 0b10 checkpoint 7367 | -4/Proximity Caves | Build established: Wizard-Scout 7766 | -4/Proximity Caves | Discovered new exit (range 15) 7769 | -4/Proximity Caves | Identified exit to Factory 7771 | -4/Proximity Caves | Entered Factory 7771 | -4/Factory | Evolved 2 slots: Propulsion x1, Utility x1 7778 | -4/Factory | Discovered new exit (range 14) 7783 | -4/Factory | Identified exit to Extension 7802 | -4/Factory | Identified exit to Upper Caves 7995 | -4/Factory | Discovered new exit (range 6) 7996 | -4/Factory | Identified exit to Research 8104 | -4/Factory | Spotted B-86 Titan 8219 | -4/Factory | Fabricated Exp. Signal Interpreter (x1) 8293 | -4/Factory | Incoming investigation squad redirected 8307 | -4/Factory | Incoming investigation squad redirected 8439 | -4/Factory | Fabricated Cld. Nuclear Pulse Thruster? 8700 | -4/Factory | Discovered exit to Research (range 3) 8722 | -4/Factory | Fabricated Cld. Nuclear Pulse Thruster? 8853 | -4/Factory | Entered Extension 8864 | -4/Extension | Rescued a captive Derelict 8869 | -4/Extension | Rescued a captive Derelict 8870 | -4/Extension | Rescued a captive Derelict 8990 | -4/Extension | Rescued a captive Derelict 9021 | -4/Extension | Lost 5 allies 9185 | -4/Extension | Lost 6 allies 9235 | -4/Extension | Rescued a captive Derelict 9241 | -4/Extension | Rescued a captive Derelict 9283 | -4/Extension | Spotted B-86 Titan 9328 | -4/Extension | Spotted B-86 Titan 9362 | -4/Extension | Lost 7 allies 9494 | -4/Extension | Rescued A7 9639 | -4/Extension | Discovered exit to Research (range 10) 9639 | -4/Extension | Discovered new exit (range 6) 9646 | -4/Extension | Identified exit to Cetus 9706 | -4/Extension | Entered Cetus 9706 | -4/Cetus | Accompanied by 4 allies (A7) 9710 | -4/Cetus | Spotted Cetus Guard 9710 | -4/Cetus | Spotted Cetus Guard 9711 | -4/Cetus | Acquired a Cetus Manufacturing Module code from A7 9711 | -4/Cetus | Spotted Cetus Guard 9717 | -4/Cetus | Spotted Cetus Guard 9725 | -4/Cetus | Allies destroyed Cetus Guard 9733 | -4/Cetus | Allies destroyed Cetus Guard 9742 | -4/Cetus | Destroyed Cetus Guard 9753 | -4/Cetus | Started Cetus Manufacturing Module 9772 | -4/Cetus | Escorted A7 to Cetus Mainframe 9778 | -4/Cetus | Manufactured an Enhanced Grunt 9803 | -4/Cetus | Manufactured an Enhanced Grunt 9828 | -4/Cetus | Manufactured an Enhanced Grunt 9853 | -4/Cetus | Manufactured an Enhanced Grunt 9878 | -4/Cetus | Manufactured an Enhanced Grunt 9965 | -4/Cetus | Discovered new exit (range 15) 9991 | -4/Cetus | Spotted Cetus Guard 9991 | -4/Cetus | Spotted Cetus Guard 10020 | -4/Cetus | Allies destroyed Cetus Guard 10020 | -4/Cetus | Spotted Cetus Guard 10032 | -4/Cetus | Allies destroyed Cetus Guard 10055 | -4/Cetus | Discovered exit to Research (range 15) 10057 | -4/Cetus | Met Revision 17 10128 | -4/Cetus | Identified exit to Archives 10181 | -4/Cetus | Entered Archives 10181 | -4/Archives | Accompanied by 8 allies (A7) 10186 | -4/Archives | Received a hacking code to weaken MAIN.C 10191 | -4/Archives | Met Zhirov 10195 | -4/Archives | Read partially decrypted archive contents 10197 | -4/Archives | Reinforcements dispatched to Archives 10201 | -4/Archives | Unable to access archive contents 10206 | -4/Archives | Unable to access archive contents 10213 | -4/Archives | Unable to access archive contents 10217 | -4/Archives | Discovered new exit (range 16) 10225 | -4/Archives | Discovered new exit (range 13) 10238 | -4/Archives | Discovered exit to Research (range 15) 10250 | -4/Archives | Zhirov detonated Archives 10251 | -4/Archives | Core integrity fell below 50% 10279 | -4/Archives | Identified exit to Hub_04(d) 10279 | -4/Archives | Entered Hub_04(d) 10281 | -4/Hub_04(d) | Lost 11 parts (1p5n3u2w) 10281 | -4/Hub_04(d) | Lost 6 allies 10298 | -4/Hub_04(d) | Incoming investigation squad redirected 10305 | -4/Hub_04(d) | Entered Research 10305 | -3/Research | Evolved 2 slots: Power x1, Propulsion x1 10354 | -3/Research | Fabricated Lrn. Sensor Array (x2) 10385 | -3/Research | Discovered new exit (range 4) 10386 | -3/Research | Identified exit to Armory 10490 | -3/Research | Identified exit to Testing 10494 | -3/Research | Spotted B-86 Titan 10505 | -3/Research | Revision forces began assault on 0b10 10506 | -3/Research | Found Prototype Device 10506 | -3/Research | Identified Exp. EM Disruption Field 10730 | -3/Research | Fabricated Cld. Nuclear Pulse Thruster? 10745 | -3/Research | Entered Testing 10778 | -3/Testing | Repaired Imp. Grenade Launcher 10790 | -3/Testing | Spotted PX-RQ3E2MS1D4 10791 | -3/Testing | Rewired PX-RQ3E2MS1D4 10831 | -3/Testing | Identified exit to Research 10848 | -3/Testing | Spotted PH-3FLWEYDOVC 10849 | -3/Testing | Rewired PH-3FLWEYDOVC 10893 | -3/Testing | Found Prototype Energy Gun 10893 | -3/Testing | Identified Tachyon Dispersion Ray 10993 | -3/Testing | Allies destroyed PX-RQ3E2MS1D4 10995 | -3/Testing | First assault squad dispatched 11015 | -3/Testing | Incoming assault squad redirected 11018 | -3/Testing | Incoming assault squad redirected 11030 | -3/Testing | Found Prototype Energy Cannon 11030 | -3/Testing | Identified Hpw. Disruptor Cannon 11093 | -3/Testing | Adv. System Shield fried by hacking feedback 11102 | -3/Testing | Found Prototype Energy Cannon 11102 | -3/Testing | Identified Potential Cannon 11115 | -3/Testing | System corruption reached 10% 11121 | -3/Testing | Incoming investigation squad redirected 11139 | -3/Testing | Entered Research 11139 | -2/Research | Evolved 2 slots: Utility x2 11150 | -2/Research | Lost 4 parts (1p2n1u) 11209 | -2/Research | Repaired Cld. Nuclear Pulse Thruster 11232 | -2/Research | Spotted B-90 Cyclops 11259 | -2/Research | Spotted B-90 Cyclops 11306 | -2/Research | Fabricated Adv. Hacking Suite (x1) 11309 | -2/Research | Identified exit to Quarantine 11334 | -2/Research | Incoming investigation squad redirected 11347 | -2/Research | Spotted B-90 Cyclops 11367 | -2/Research | Entered Quarantine 11387 | -2/Quarantine | Repaired Nuclear Pulse Array 11401 | -2/Quarantine | Found Alien Artifact 11401 | -2/Quarantine | Identified Subatomic Replicator 11414 | -2/Quarantine | Found Alien Artifact 11490 | -2/Quarantine | Found Alien Artifact 11490 | -2/Quarantine | Identified Core Reset Matrix 11490 | -2/Quarantine | Identified Phase Redirector 11490 | -2/Quarantine | Identified Transdimensional Reconstructor 11490 | -2/Quarantine | Used Core Reset Matrix 11494 | -2/Quarantine | Detected hypermatrix surge 11494 | -2/Quarantine | Sensed 14 artifacts in vicinity 11505 | -2/Quarantine | Discovered new exit (range 4) 11505 | -2/Quarantine | Identified exit to Access 11512 | -2/Quarantine | Found Terrabomb 11518 | -2/Quarantine | Found Terrabomb 11525 | -2/Quarantine | Found Terrabomb 11583 | -2/Quarantine | Found Sigix Corpse 11683 | -2/Quarantine | Repaired Imp. Flight Unit 11691 | -2/Quarantine | Used Terrabomb 11692 | -2/Quarantine | Met incapacitated Sigix Warrior 11692 | -2/Quarantine | Lockdown squad dispatched 11696 | -2/Quarantine | Acquired the access code to the Sigix quarantine chamber 11696 | -2/Quarantine | Unlocked Sigix quarantine chamber 11697 | -2/Quarantine | Found Sigix Containment Pod 11710 | -2/Quarantine | Spotted Lightning 11710 | -2/Quarantine | Spotted Lightning 11711 | -2/Quarantine | Spotted Lightning 11727 | -2/Quarantine | Spotted Fortress 11749 | -2/Quarantine | Discovered new exit (range 6) 11750 | -2/Quarantine | Identified exit to Section 7 11750 | -2/Quarantine | Entered Section 7 11751 | -2/Section 7 | Sensed 21 artifacts in vicinity 11751 | -2/Section 7 | Spotted S7 Guard 11772 | -2/Section 7 | Spotted S7 Guard 11780 | -2/Section 7 | Found Spacefold Activator 11787 | -2/Section 7 | Spotted S7 Guard 11792 | -2/Section 7 | Found Core Membrane 11792 | -2/Section 7 | Installed Core Membrane, gained immunity to corruption 11800 | -2/Section 7 | Spotted S7 Guard 11804 | -2/Section 7 | Found Integrated Thermoelectric Network 11804 | -2/Section 7 | Installed Integrated Thermoelectric Network, gained heat-energy exchange potential 11850 | -2/Section 7 | Found Microwarp Drive 11854 | -2/Section 7 | Discovered exit to Access (range 5) 11862 | -2/Section 7 | Found Integrated Dissipator 11862 | -2/Section 7 | Installed Integrated Dissipator, increased core heat dissipation (+20) 11869 | -2/Section 7 | Found Integrated Reactor 11869 | -2/Section 7 | Installed Integrated Reactor, increased core energy generation (+10) 11876 | -2/Section 7 | Spotted B-90 Cyclops 11893 | -2/Section 7 | Found Exp. Signal Interpreter 11986 | -2/Section 7 | Spotted B-99 Colossus 11996 | -2/Section 7 | Found Integrated Dissipator 11996 | -2/Section 7 | Installed Integrated Dissipator, increased core heat dissipation (+20) 11997 | -2/Section 7 | Found Integrated Dissipator 11997 | -2/Section 7 | Installed Integrated Dissipator, increased core heat dissipation (+20) 12007 | -2/Section 7 | Found LRC Energy Well 12007 | -2/Section 7 | Installed LRC Energy Well, increased energy storage capacity (+250) 12031 | -2/Section 7 | Activated Sigix Exoskeleton 12031 | -2/Section 7 | Received instructions from Sigix Warrior 12035 | -2/Section 7 | Spotted Executioner 12035 | -2/Section 7 | Spotted Executioner 12037 | -2/Section 7 | Spotted Striker 12037 | -2/Section 7 | Spotted Striker 12054 | -2/Section 7 | Scanned by Researcher 12055 | -2/Section 7 | Intercept squad dispatched 12073 | -2/Section 7 | Spotted Tracker 12073 | -2/Section 7 | Spotted Tracker 12094 | -2/Section 7 | Spotted Combat Programmer 12106 | -2/Section 7 | Spotted Combat Programmer 12108 | -2/Section 7 | Core integrity fell below 50% 12143 | -2/Section 7 | Core integrity fell below 20% 12144 | -2/Section 7 | Lost 8 parts (2p4n2u) 12152 | -2/Section 7 | Sigix Exoskeleton integrity reduced to 80% 12155 | -2/Section 7 | Entered Access 12155 | -1/Access | Accompanied by 1 ally (Sigix Warrior) 12155 | -1/Access | Evolved 2 slots: Power x1, Weapon x1 12262 | -1/Access | Spotted Striker 12268 | -1/Access | Intercept squad dispatched 12287 | -1/Access | Spotted Tracker 12288 | -1/Access | Spotted Tracker 12337 | -1/Access | Sigix Exoskeleton integrity reduced to 60% 12349 | -1/Access | Spotted Combat Programmer 12350 | -1/Access | Core integrity fell below 50% 12355 | -1/Access | Discovered new exit (range 5) 12355 | -1/Access | Spotted B-99 Colossus 12364 | -1/Access | Spotted B-99 Colossus 12365 | -1/Access | Emitted hypermatrix ping 12367 | -1/Access | Spotted Combat Programmer 12370 | -1/Access | Assembled emerged from beneath the floor 12387 | -1/Access | Identified exit to Surface 12388 | -1/Access | Core integrity fell below 20% 12388 | *** | Destroyed 0b10! Last Messages --------------- 12384_ Slug penetrates Reinforced Barrier. 12384_ EMDS Slug penetrates Sigix Warrior. 12384_ Synergy achieved. Target locked: Combat Programmer. 12384_ Quantum Shear penetrates Combat Programmer. 12385_ Acquired 6 matter. 12385_ Sigix Warrior knocked back. 12385_ Slug penetrates Sigix Warrior. 12386_ EMDS Slug penetrates Sigix Warrior. 12387_ EXIT=IDENTIFIED: SURFACE 12387_ Quantum Shear penetrates Combat Programmer. 12387_ Slug penetrates Reinforced Barrier. 12387_ P-80 Master Unknown Hover Unit temporarily disabled. 12388_ EMDS Slug penetrates Sigix Warrior. [Achievement: Payload Armed] [Achievement: Winner's Signature] [Achievement: Partners In Destruction] Map ----- +----------------------------------------------------+ | ?????????????????????????????????????????????????? | | ?????????????????????????????????????????????????? | | ?????????????????????????????????????????????????? | | ?????????????????????????????????????????????????? | | ?????????????????????????????????????????????????? | | ?????????????????????????????????????????????????? | | ?????????????????????????????????????????????????? | | ?????????????????????????????????????????????????? | | ?????????????????????????????????????????????????? | | ?????????????????????????????????????????????????? | | ?????????????????????????????????????????????????? | | #????????????????????????????????????##+#????????? | | +???????????????????????????????????? ????????? | | #???????????????????????????????????? ????????? | | #????????????????????????????????????# #????????? | | #???""???????????????????????????????# #????????? | | #??""????????????????????????????????# #????????? | | #? ?????????????????????????????????# #????????? | | # ??????????????????????????????????# #????????? | | # ???????????????????????????###?????#* #????????? | | +????????##################### #######% #????????? | | #????????# % C #????????? | | #????????# BB%% % #????????? | | ########## BB ##???????? | | % % u##???????? | | X "@ % ##???????? | | % "" p ##???????? | | %% p % R% #????????? | | ########## BB p % *%s #????????? | | ?????????# BB " " " #????????? | | ?????????# T""" #????????? | | ?????????##################### ;;##### #????????? | | ?????????????????????????????#####???# #????????? | | ?????????????????????????????????????# #????????? | | ?????????????????????????????????????# #????????? | | ?????????????????????????????????????# #????????? | | ?????????????????????????????????????? +????????? | | ?????????????????????????????????????? #????????? | | ?????????????????????????????????????? #????????? | | ?????????????????????????????????????? #????????? | | ?????????????????????????????????????? ?????????? | | ?????????????????????????????????????? ?????????? | | ?????????????????????????????????????? ?????????? | | ?????????????????????????????????????? ??????#### | | ?????????????????????????????????????# ####### | | ?????????????????????????????????????# | | ?????????????????????????????????????# | | ?????????????????????????????????????# #?##### | | ?????????????????????????????????????# ###???## | | ?????????????????????????????????????# # ??# | +----------------------------------------------------+ Best States ------------- Heat Dissipation 112 Energy Generation 55 Energy Capacity 470 Matter Stores 300 Matter Capacity 300 Sight Range 16 Robot Scan Range 20 Terrain Scan Density 10 Armor Coverage 300 Power Shielding 90 Evasion (%) 72 Recoil Reduction 4 Offensive Hacking 76 Defensive Hacking 14 Item Schematics ----------------- Thermal Barrier | -2/Section 7 | Archive Robot Schematics ------------------ S-43 Plague | -2/Section 7 | Archive Fabricated ------------ Impulse Thruster Array | x1 | -6/Factory | Preloaded Adv. Hacking Suite | x1 | -5/Factory Adv. Hacking Suite | x1 | -5/Factory Exp. Signal Interpreter | x1 | -4/Factory Cld. Nuclear Pulse Thruster | x1 | -4/Factory Cld. Nuclear Pulse Thruster | x1 | -4/Factory Lrn. Sensor Array | x2 | -3/Research Cld. Nuclear Pulse Thruster | x1 | -3/Research Adv. Hacking Suite | x1 | -2/Research Alien Tech Used ----------------- Core Expander Integrated Reactor Subatomic Replicator Core Reset Matrix Terrabomb Spacefold Activator Core Membrane Integrated Thermoelectric Network Integrated Dissipator LRC Energy Well Microwarp Drive Achievements -------------- Partners In Destruction Payload Armed Production Line Whoosh! Winner's Signature Challenges ------------ None Game ------ Seed XenonGravityCompanion Manual? 0 Play Time 02:49:41 Cumulative 136.2 hours Start 2025.03.18 @ 21:49:35 End 2025.03.19 @ 09:10:20 Sessions 3 Manual Loads 0 Difficulty Rogue Special Mode None Game No. 97 Rogue 97 Adventurer 0 Explorer 0 Win Type 3 Total 7 Types 5/0/1/1/0/0/0/0/0 Lore% 67 Gallery% 63 Achievement% 61 Wizard Run 0 Options --------- Layout 1 ASCII 0 Keyboard 0 Movement Mouse Keybinds 0 Fullscreen 2 Font 24/Smallcaps Map View 50x35 Zoom Use 0% Tactical HUD 1 Map Filters NONE Filters NONE Steam 1 RUN: 10f0d7e6-7850-44d1-8eaf-834e4d5090e9